bitfinex/quotes_BTCUSD_20250421
["timestamp","ask_amount","ask_price","bid_price","bid_amount"]
[1745273506238,0.02484814,87020.0,87019.0,0.3435908]
[1745273506447,0.00089033,87022.0,87021.0,0.22982958]
[1745273507212,0.00089033,87022.0,87021.0,0.34358552]
[1745273507827,0.08609803,87022.0,87021.0,0.34358552]
[1745273508263,0.08709803,87022.0,87021.0,0.34358552]
[1745273508668,0.00189033,87022.0,87021.0,0.34358552]
[1745273508872,0.00289033,87022.0,87021.0,0.34358552]
[1745273509896,0.00289033,87022.0,87019.0,0.22983486]
[1745273510094,0.08809803,87022.0,87021.0,0.22982958]
[1745273511025,0.08709803,87022.0,87021.0,0.22982958]
[1745273511230,0.08809803,87022.0,87021.0,0.22982958]
[1745273511641,0.08709803,87022.0,87021.0,0.22982958]
[1745273512063,0.08809803,87022.0,87021.0,0.22982958]
[1745273514886,0.08809803,87022.0,87021.0,0.35812637]
[1745273516128,0.08709803,87022.0,87021.0,0.35812637]
[1745273516980,0.08609803,87022.0,87021.0,0.35812637]
[1745273517154,0.08709803,87022.0,87021.0,0.35812637]
[1745273517583,0.00189033,87022.0,87021.0,0.35812637]
[1745273520661,0.00089033,87022.0,87021.0,0.35812637]
[1745273520985,0.00189033,87022.0,87021.0,0.35812637]
[1745273525185,0.00189033,87022.0,87021.0,0.34358552]
[1745273530498,0.00189033,87022.0,87017.0,0.011492]
[1745273530499,0.01338167,87022.0,87012.0,0.0901]
[1745273530750,0.00189033,87022.0,87020.0,0.22983205]
[1745273530952,0.00189033,87022.0,87021.0,0.22982958]
[1745273531349,0.00089033,87022.0,87021.0,0.22982958]
[1745273534069,0.00189033,87022.0,87021.0,0.22982958]
[1745273539669,0.00189033,87022.0,87021.0,0.34358552]
[1745273540257,0.08709144,87022.0,87021.0,0.34358552]
[1745273551583,0.24133182,87018.0,87012.0,0.33144337]
[1745273551799,0.22984807,87014.0,87013.0,0.11375594]
[1745273552018,0.01149213,87016.0,87013.0,0.11375594]
[1745273552261,0.01149213,87016.0,87004.0,0.01149372]
[1745273552262,0.01149279,87011.0,87002.0,0.24137375]
[1745273552475,0.22985418,87012.0,87009.0,0.22986052]
[1745273552695,0.24134684,87012.0,87009.0,0.22986052]
[1745273553109,0.24134684,87012.0,87007.0,0.24135758]
[1745273553110,0.01149253,87013.0,87010.0,0.22985792]
[1745273553659,0.01149253,87013.0,87008.0,0.22986189]
[1745273553660,0.01149279,87011.0,87008.0,0.22986189]
[1745273553861,0.01149279,87011.0,87009.0,0.22986001]
[1745273554077,0.24134332,87013.0,87010.0,0.22985845]
[1745273554756,0.24134805,87012.0,87009.0,0.22986001]
[1745273555652,0.02482437,87011.0,87010.0,0.22985863]
[1745273556534,0.24134628,87012.0,87009.0,0.22986001]
[1745273556742,0.02482437,87011.0,87009.0,0.22986001]
[1745273556894,0.02482437,87011.0,87010.0,0.22985863]
[1745273557632,0.08512491,87011.0,87010.0,0.22985863]
[1745273558254,0.08612491,87011.0,87010.0,0.22985863]
[1745273559741,0.08612491,87011.0,87010.0,0.34361457]
[1745273560128,0.001,87011.0,87010.0,0.34361457]
[1745273560916,0.02582437,87011.0,87010.0,0.34361457]
[1745273561119,0.02582437,87011.0,87006.0,0.22986798]
[1745273561120,0.01149385,87003.0,87000.0,0.0497]
[1745273561329,0.08612491,87011.0,86989.0,0.05989104]
[1745273561330,0.22990619,86992.0,86989.0,0.05989104]
[1745273561529,0.01149451,86998.0,86993.0,0.22990355]
[1745273561732,0.01149425,87000.0,86996.0,0.22989354]
[1745273561913,0.22989112,86998.0,86997.0,0.11375594]
[1745273562121,0.25468114,86998.0,86997.0,0.11375594]
[1745273562765,0.25468114,86998.0,86997.0,0.1142123]
[1745273563759,0.02479002,86998.0,86997.0,0.1142123]
[1745273563960,0.02479002,86998.0,86997.0,0.34410528]
[1745273564165,0.24137678,87001.0,86998.0,0.01149451]
[1745273564371,0.24137678,87001.0,86998.0,0.11375594]
[1745273564372,0.22988505,87000.0,86998.0,0.11375594]
[1745273564980,0.22988505,87000.0,86998.0,0.34364592]
[1745273565158,0.24137667,87001.0,86998.0,0.34364592]
[1745273565359,0.24137667,87001.0,86999.0,0.22988752]
[1745273565522,0.01149412,87001.0,86999.0,0.22988657]
[1745273565736,0.2413773,87001.0,86998.0,0.35514043]
[1745273566456,0.24132238,87021.0,87015.0,0.01149227]
[1745273566677,0.01149161,87020.0,87014.0,0.22984769]
[1745273566895,0.01149174,87019.0,87014.0,0.22984769]
[1745273567120,0.01149187,87018.0,87015.0,0.22984279]
[1745273567351,0.01149187,87018.0,87016.0,0.22984102]
[1745273567729,0.02484022,87017.0,87016.0,0.22984149]
[1745273568143,0.01149213,87016.0,87011.0,0.01149279]
[1745273568352,0.26617388,87017.0,87015.0,0.22984542]
[1745273568574,0.26617248,87017.0,87015.0,0.22984542]
[1745273568782,0.03633222,87017.0,87015.0,0.22984542]
[1745273568967,0.26817359,87017.0,87015.0,0.22984542]
[1745273569345,0.02484022,87017.0,87016.0,0.22984278]
[1745273569703,0.02684022,87017.0,87016.0,0.22984278]
[1745273569907,0.02684022,87017.0,87015.0,0.22984542]
[1745273570109,0.001,87016.0,87015.0,0.22984542]
[1745273570356,0.02583758,87016.0,87015.0,0.22984542]
[1745273571012,0.02483758,87016.0,87015.0,0.22984542]
[1745273571369,0.02583758,87016.0,87015.0,0.22984542]
[1745273571872,0.02683758,87016.0,87015.0,0.22984542]
[1745273572523,0.08712201,87016.0,87015.0,0.38910136]
[1745273572733,0.004,87016.0,87015.0,0.38910136]
[1745273572934,0.004,87016.0,87015.0,0.46007412]
[1745273573132,0.004,87016.0,87015.0,0.46107412]
[1745273573331,0.002,87016.0,87015.0,0.46107412]
[1745273573537,0.001,87016.0,87015.0,0.46107412]
[1745273573901,0.001,87016.0,87015.0,0.80107412]
[1745273574135,0.002,87016.0,87015.0,0.80107412]
[1745273574552,0.001,87016.0,87015.0,0.80107412]
[1745273575302,0.01148897,87040.0,87021.0,0.58437043]
[1745273575556,0.01148897,87040.0,87021.0,0.74692637]
[1745273576199,0.24127028,87040.0,87021.0,0.74692637]
[1745273576417,0.01148897,87040.0,87021.0,0.74692637]
[1745273577609,0.22977763,87041.0,87021.0,0.74692637]
[1745273577820,0.24210686,87042.0,87021.0,0.74692637]
[1745273577821,0.000844,87042.0,87021.0,0.79492637]
[1745273578419,1e-08,87022.0,87021.0,0.79492637]
[1745273578845,1e-08,87022.0,87021.0,0.79592637]
[1745273579208,1e-08,87022.0,87021.0,0.79492637]
[1745273579639,1e-08,87022.0,87021.0,0.79792637]
[1745273580236,1e-08,87022.0,87021.0,0.79992637]
[1745273580616,1e-08,87022.0,87021.0,0.80192637]
[1745273590384,1e-08,87022.0,87021.0,0.92282637]
[1745273590574,1e-08,87022.0,87021.0,0.80192637]
[1745273594415,1e-08,87022.0,87021.0,0.89904637]
[1745273603999,1e-08,87022.0,87021.0,1.27788637]
[1745273607949,1e-08,87022.0,87021.0,1.17976637]
[1745273608156,1e-08,87022.0,87021.0,0.68958552]
[1745273608360,1e-08,87022.0,87021.0,0.11975594]
[1745273608556,1e-08,87022.0,87021.0,0.34958552]
[1745273608764,1e-08,87022.0,87021.0,0.78670552]
[1745273608975,1e-08,87022.0,87021.0,0.68958552]
[1745273609181,1e-08,87022.0,87021.0,0.78370552]
[1745273609305,1e-08,87022.0,87021.0,0.79824637]
[1745273609507,1e-08,87022.0,87021.0,0.79624637]
[1745273609926,1e-08,87022.0,87021.0,0.79524637]
[1745273610127,1e-08,87022.0,87021.0,0.69812637]
[1745273610468,1e-08,87022.0,87021.0,0.79524637]
[1745273611439,1e-08,87022.0,87021.0,0.69812637]
[1745273611637,1e-08,87022.0,87021.0,0.79524637]
[1745273619374,1e-08,87022.0,87021.0,0.69812637]
[1745273619607,1e-08,87022.0,87021.0,0.79520637]
[1745273621282,1e-08,87022.0,87021.0,0.69812637]
[1745273621487,1e-08,87022.0,87021.0,0.79520637]
[1745273621713,1e-08,87022.0,87021.0,0.69812637]
[1745273621900,1e-08,87022.0,87021.0,0.79520637]
[1745273622098,1e-08,87022.0,87021.0,0.69812637]
[1745273622314,1e-08,87022.0,87021.0,0.79520637]
[1745273628335,1e-08,87022.0,87021.0,0.34358552]
[1745273628546,0.28692152,87021.0,87010.0,0.21719418]
[1745273628750,0.28692152,87021.0,87018.0,0.22983706]
[1745273628958,0.28692152,87021.0,87018.0,0.343593]
[1745273629162,0.08520013,87020.0,87018.0,0.343593]
[1745273629376,0.08520013,87020.0,87019.0,0.22983486]
[1745273634101,0.08520013,87020.0,87019.0,0.35813165]
[1745273634321,0.00100001,87022.0,87021.0,0.24437043]
[1745273634539,0.00100001,87022.0,87021.0,0.35812637]
[1745273636781,0.00100001,87022.0,87021.0,0.45524637]
[1745273636995,0.00100001,87022.0,87021.0,0.35812637]
[1745273637226,0.00100001,87022.0,87021.0,0.45524637]
[1745273641857,0.00100001,87022.0,87021.0,0.35812637]
[1745273642061,0.00100001,87022.0,87021.0,0.45524637]
[1745273642710,0.00100001,87022.0,87021.0,0.35812637]
[1745273642898,0.00100001,87022.0,87021.0,0.45524637]
[1745273643602,0.00100001,87022.0,87021.0,0.35812637]
[1745273643729,0.00100001,87022.0,87021.0,0.45524637]
[1745273644811,0.00100001,87022.0,87021.0,0.35812637]
[1745273645026,0.00100001,87022.0,87021.0,0.45524637]
[1745273645993,0.00100001,87022.0,87020.0,0.22983222]
[1745273646538,0.08516054,87021.0,87020.0,0.22983222]
[1745273646896,0.06030976,87021.0,87020.0,0.22983222]
[1745273647105,0.00100001,87022.0,87021.0,0.22982958]
[1745273647508,0.08612871,87022.0,87021.0,0.22982958]
[1745273651312,0.08612871,87022.0,87021.0,0.34358552]
[1745273651662,0.00100001,87022.0,87021.0,0.34358552]
[1745273651872,0.08612871,87022.0,87021.0,0.34358552]
[1745273652218,0.00100001,87022.0,87021.0,0.34358552]
[1745273653757,0.00100001,87022.0,87017.0,0.011492]
[1745273653758,0.22984293,87016.0,87012.0,0.01454085]
[1745273653960,0.24132937,87018.0,87017.0,0.09708]
[1745273654172,0.22983187,87021.0,87018.0,0.2298375]
[1745273654173,0.22983222,87020.0,87018.0,0.2298375]
[1745273654376,0.24132334,87021.0,87019.0,0.22983486]
[1745273655006,0.24132334,87021.0,87018.0,0.34359279]
[1745273655212,0.02484814,87020.0,87018.0,0.34359279]
[1745273655422,0.02484814,87020.0,87018.0,0.34359315]
[1745273655597,0.02484814,87020.0,87018.0,0.11375594]
[1745273656299,0.25468119,87020.0,87018.0,0.11375594]
[1745273656542,0.22983486,87019.0,87018.0,0.11375594]
[1745273656971,0.25468036,87019.0,87018.0,0.11375594]
[1745273658805,0.01149187,87018.0,87014.0,0.24133817]
[1745273659018,0.01149187,87018.0,87016.0,0.22984214]
[1745273659250,0.02484022,87017.0,87015.0,0.22984324]
[1745273659452,0.02484022,87017.0,87016.0,0.22984278]
[1745273659847,0.22983349,87020.0,87016.0,0.24133491]
[1745273660053,0.02484022,87017.0,87016.0,0.24133491]
[1745273660266,0.22983668,87019.0,87016.0,0.24133491]
[1745273660415,0.02484022,87017.0,87016.0,0.24133491]
[1745273660656,0.24132842,87019.0,87016.0,0.24133491]
[1745273661260,0.22984542,87015.0,87014.0,0.11375594]
[1745273661504,0.22984335,87016.0,87014.0,0.11375594]
[1745273661712,0.02483494,87015.0,87014.0,0.34360313]
[1745273661919,0.02483494,87015.0,87014.0,0.34360401]
[1745273662075,0.22984362,87016.0,87014.0,0.34360401]
[1745273662294,0.02483494,87015.0,87014.0,0.11375594]
[1745273662867,0.02483494,87015.0,87014.0,0.35814486]
[1745273663078,0.02483494,87015.0,87014.0,0.40554486]
[1745273663318,0.01149095,87025.0,87021.0,0.22982958]
[1745273663583,0.08610768,87022.0,87021.0,0.34358552]
[1745273664572,0.31593462,87022.0,87021.0,0.11375594]
[1745273664777,0.22985599,87011.0,87010.0,0.41062267]
[1745273665067,0.011492,87017.0,87014.0,0.22984622]
[1745273665222,0.24133236,87017.0,87014.0,0.34360216]
[1745273665429,0.22984542,87015.0,87014.0,0.11375594]
[1745273665827,0.24132971,87018.0,87014.0,0.11375594]
[1745273666049,0.24133311,87017.0,87014.0,0.11375594]
[1745273666249,0.24133311,87017.0,87014.0,0.3436034]
[1745273666580,0.22983782,87018.0,87016.0,0.22984114]
[1745273666710,0.02484022,87017.0,87016.0,0.22984114]
[1745273667593,0.26617463,87017.0,87014.0,0.11375594]
[1745273667746,0.22984336,87016.0,87014.0,0.3436026]
[1745273667945,0.22983799,87018.0,87015.0,0.22984331]
[1745273668151,0.22983767,87018.0,87016.0,0.22984278]
[1745273668553,0.011492,87017.0,87014.0,0.11375594]
[1745273668765,0.2298447,87016.0,87014.0,0.11375594]
[1745273669159,0.22984542,87015.0,87014.0,0.11375594]
[1745273669536,0.24134601,87012.0,87008.0,0.24135502]
[1745273669765,0.24134601,87012.0,87009.0,0.11375594]
[1745273669977,0.22985751,87011.0,87009.0,0.11375594]
[1745273670176,0.24134601,87012.0,87005.0,0.01149359]
[1745273670177,0.24135156,87010.0,87005.0,0.01149359]
[1745273670375,0.24135156,87010.0,87005.0,0.12524953]
[1745273670669,0.2298595,87010.0,87007.0,0.24135475]
[1745273670884,0.2298595,87010.0,87009.0,0.001]
[1745273671748,0.229854,87012.0,87009.0,0.01249306]
[1745273671891,0.22985679,87011.0,87009.0,0.24235389]
[1745273672099,0.22985679,87011.0,87009.0,0.24135389]
[1745273672319,0.22985679,87011.0,87008.0,0.24135192]
[1745273672520,0.22985882,87010.0,87008.0,0.24135192]
[1745273672716,0.24134958,87011.0,87008.0,0.24135192]
[1745273673393,0.24134958,87011.0,87009.0,0.23086096]
[1745273673685,0.01149266,87012.0,87009.0,0.22986096]
[1745273673922,0.01149266,87012.0,87009.0,0.23086096]
[1745273674241,0.22985711,87011.0,87009.0,0.23086053]
[1745273675060,0.01149253,87013.0,87010.0,0.22985863]
[1745273675975,0.01149253,87013.0,87009.0,0.24334905]
[1745273676185,0.22985409,87012.0,87010.0,0.2298585]
[1745273676424,0.22985409,87012.0,87010.0,0.2308585]
[1745273676625,0.22985409,87012.0,87010.0,0.2318585]
[1745273677217,0.27720534,87031.0,87019.0,0.22983486]
[1745273677514,0.24130918,87026.0,87019.0,0.3435908]
[1745273677919,0.24131108,87025.0,87019.0,0.3435908]
[1745273678253,0.24131518,87024.0,87019.0,0.3435908]
[1745273678571,0.24130723,87026.0,87021.0,0.22982958]
[1745273678783,0.22981948,87025.0,87021.0,0.22982958]
[1745273678993,0.24132053,87022.0,87019.0,0.3435908]
[1745273679197,0.07170996,87022.0,87019.0,0.3435908]
[1745273679369,0.07170996,87022.0,87019.0,0.11375594]
[1745273679572,0.06021862,87022.0,87020.0,0.22983054]
[1745273680092,0.06121862,87022.0,87020.0,0.22983054]
[1745273680314,0.06121862,87022.0,87019.0,0.34358595]
[1745273680315,0.22982958,87021.0,87019.0,0.11375594]
[1745273680507,0.07170996,87022.0,87019.0,0.34358976]
[1745273680727,0.06022389,87020.0,87019.0,0.34358976]
[1745273680939,0.2413197,87022.0,87019.0,0.34358976]
[1745273681160,0.2413197,87022.0,87020.0,0.22983214]
[1745273681287,0.01149135,87022.0,87020.0,0.22983214]
[1745273681486,1e-08,87022.0,87020.0,0.22983214]
[1745273682177,0.22982823,87022.0,87020.0,0.22983214]
[1745273682386,0.22982823,87022.0,87016.0,0.01149213]
[1745273682387,0.22983732,87019.0,87015.0,0.22984533]
[1745273682634,0.24132906,87019.0,87016.0,0.34359804]
[1745273683149,0.01149135,87022.0,87016.0,0.34359804]
[1745273683150,1e-08,87022.0,87021.0,0.27812958]
[1745273683385,1e-08,87022.0,87021.0,0.40642637]
[1745273684093,1e-08,87022.0,87021.0,0.45312637]
[1745273685850,0.00100001,87022.0,87021.0,0.45312637]
[1745273689739,1e-08,87022.0,87021.0,0.79412637]
[1745273691262,1e-08,87022.0,87021.0,0.89116637]
[1745273692439,1e-08,87022.0,87021.0,0.89316637]
[1745273693062,1e-08,87022.0,87021.0,0.89516637]
[1745273701184,1e-08,87022.0,87021.0,0.78358552]
[1745273701350,1e-08,87022.0,87021.0,0.88058552]
[1745273701572,1e-08,87022.0,87021.0,0.89512637]
[1745273703993,1e-08,87022.0,87021.0,1.09512637]
[1745273713941,1e-08,87022.0,87021.0,0.99812637]
[1745273714160,1e-08,87022.0,87021.0,0.78558552]
[1745273714365,1e-08,87022.0,87021.0,0.80012637]
[1745273714817,1e-08,87022.0,87021.0,0.79812637]
[1745273715175,1e-08,87022.0,87021.0,0.79712637]
[1745273715400,1e-08,87022.0,87021.0,0.70012637]
[1745273715606,1e-08,87022.0,87021.0,0.79712637]
[1745273717382,1e-08,87022.0,87021.0,0.84322637]
[1745273717586,1e-08,87022.0,87021.0,0.89182637]
[1745273718386,1e-08,87022.0,87021.0,1.09182637]
[1745273718589,1e-08,87022.0,87021.0,0.99582637]
[1745273718794,1e-08,87022.0,87021.0,1.09082637]
[1745273719221,1e-08,87022.0,87021.0,1.09282637]
[1745273720246,1e-08,87022.0,87021.0,1.09382637]
[1745273721163,1e-08,87022.0,87021.0,1.09282637]
[1745273721805,1e-08,87022.0,87021.0,1.09482637]
[1745273730975,1e-08,87022.0,87021.0,1.09382637]
[1745273733186,1e-08,87022.0,87021.0,0.99682637]
[1745273733362,1e-08,87022.0,87021.0,1.09382637]
[1745273734826,1e-08,87022.0,87021.0,0.99682637]
[1745273735052,0.0008446,87034.0,87033.0,0.58433874]
[1745273735271,0.0008446,87034.0,87033.0,0.74789468]
[1745273736515,0.00096028,87034.0,87033.0,0.89809468]
[1745273738253,0.00096028,87034.0,87033.0,0.69809468]
[1745273738880,0.00096028,87034.0,87033.0,0.79505468]
[1745273739371,0.00096028,87034.0,87033.0,0.99505468]
[1745273740493,0.00096028,87034.0,87033.0,0.79505468]
[1745273741832,0.00096028,87034.0,87033.0,0.99505468]
[1745273743706,0.00078645,87034.0,87033.0,0.99505468]
[1745273753188,0.00078645,87034.0,87033.0,0.79505468]
[1745273758062,0.00078645,87034.0,87033.0,0.99505468]
[1745273761024,0.00078645,87034.0,87033.0,0.79505468]
[1745273763261,0.00078645,87034.0,87033.0,0.69809468]
[1745273763481,0.00078645,87034.0,87033.0,0.79505468]
[1745273766319,0.00078645,87034.0,87033.0,0.69809468]
[1745273766549,0.00078645,87034.0,87033.0,0.11375594]
[1745273766550,0.00178645,87034.0,87033.0,0.11375594]
[1745273766756,0.00178645,87034.0,87022.0,0.2]
[1745273766757,0.22982429,87023.0,87022.0,0.2]
[1745273766970,0.22982429,87023.0,87022.0,0.11375594]
[1745273767989,0.01149147,87021.0,87013.0,0.22984938]
[1745273768200,0.22983222,87020.0,87016.0,0.01149213]
[1745273768446,0.2298354,87019.0,87017.0,0.11375594]
[1745273768945,0.2298375,87018.0,87017.0,0.11375594]
[1745273769152,0.29878166,87018.0,87017.0,0.11375594]
[1745273769338,0.06894416,87018.0,87017.0,0.11375594]
[1745273769899,0.29878166,87018.0,87017.0,0.11375594]
[1745273770120,0.06894416,87018.0,87017.0,0.11375594]
[1745273770316,0.01149147,87021.0,87017.0,0.34359608]
[1745273770490,0.01149147,87021.0,87018.0,0.2298372]
[1745273771308,0.24132201,87021.0,87018.0,0.2298372]
[1745273771663,0.01149147,87021.0,87018.0,0.2298372]
[1745273772026,0.24132366,87021.0,87018.0,0.2298372]
[1745273773087,0.24132519,87020.0,87017.0,0.34359592]
[1745273773694,0.24132519,87020.0,87014.0,0.0114924]
[1745273773695,0.01149266,87012.0,87008.0,0.01149319]
[1745273773901,0.01149266,87012.0,87009.0,0.11375594]
[1745273773902,0.24134622,87012.0,87009.0,0.11375594]
[1745273774104,0.02482437,87011.0,87009.0,0.34361665]
[1745273774525,0.25468147,87011.0,87009.0,0.11375594]
[1745273774744,0.02482437,87011.0,87009.0,0.11375594]
[1745273774942,0.25468076,87011.0,87009.0,0.11375594]
[1745273775676,0.22985863,87010.0,87009.0,0.11375594]
[1745273775881,0.02482437,87011.0,87009.0,0.34361721]
[1745273776080,0.02482173,87010.0,87009.0,0.34361721]
[1745273776387,0.01149266,87012.0,87009.0,0.34361721]
[1745273776582,0.02482173,87010.0,87009.0,0.34361721]
[1745273776892,0.001,87011.0,87009.0,0.34361721]
[1745273777105,0.02482173,87010.0,87009.0,0.34361721]
[1745273777731,0.24234607,87012.0,87009.0,0.34361721]
[1745273777945,0.02482173,87010.0,87009.0,0.34361721]
[1745273778143,0.24234607,87012.0,87009.0,0.34361721]
[1745273778395,0.02482173,87010.0,87009.0,0.34361721]
[1745273778621,0.24234607,87012.0,87009.0,0.34361721]
[1745273778836,0.02482173,87010.0,87009.0,0.34361721]
[1745273779050,0.22985714,87011.0,87009.0,0.34361721]
[1745273779273,0.02582173,87010.0,87009.0,0.34361721]
[1745273779987,0.02482173,87010.0,87009.0,0.34361721]
[1745273780206,0.01149253,87013.0,87011.0,0.22985536]
[1745273781335,0.02482701,87012.0,87011.0,0.22985536]
[1745273782851,0.02582701,87012.0,87011.0,0.22985536]
[1745273783357,0.02582701,87012.0,87011.0,0.35815215]
[1745273783562,0.02682701,87012.0,87011.0,0.35815215]
[1745273783765,0.002,87012.0,87011.0,0.35815215]
[1745273790311,0.002,87012.0,87011.0,0.40575215]
[1745273791103,0.001,87012.0,87011.0,0.40575215]
[1745273791323,0.4159,87027.0,87026.0,0.22981637]
[1745273791525,0.44076663,87027.0,87026.0,0.34357231]
[1745273791699,0.50943562,87027.0,87026.0,0.34357231]
[1745273792550,0.51043562,87027.0,87026.0,0.34357231]
[1745273793827,0.51143562,87027.0,87026.0,0.34357231]
[1745273795804,0.09553562,87027.0,87026.0,0.34357231]
[1745273796238,0.002,87027.0,87026.0,0.34357231]
[1745273797126,0.002,87027.0,87026.0,0.35811316]
[1745273803791,0.002,87027.0,87026.0,0.69811316]
[1745273804521,0.00078645,87034.0,87033.0,0.24433874]
[1745273804830,0.00078645,87034.0,87033.0,0.35809468]
[1745273805062,0.00078645,87034.0,87033.0,0.12829679]
[1745273805281,0.00078645,87034.0,87033.0,0.35809468]
[1745273806955,0.09536483,87034.0,87033.0,0.35809468]
[1745273807139,0.00178645,87034.0,87033.0,0.35809468]
[1745273807592,0.09536483,87034.0,87033.0,0.35809468]
[1745273807803,0.00278645,87034.0,87033.0,0.35809468]
[1745273811676,0.09636483,87034.0,87033.0,0.35809468]
[1745273811888,0.00278645,87034.0,87033.0,0.74469468]
[1745273812096,0.00278645,87034.0,87033.0,0.79299468]
[1745273812738,0.00178645,87034.0,87033.0,0.79299468]
[1745273813142,0.00078645,87034.0,87033.0,0.79299468]
[1745273815685,0.2305817,87034.0,87033.0,0.11375594]
[1745273816120,0.32424445,87034.0,87033.0,0.11375594]
[1745273816725,0.32524445,87034.0,87033.0,0.11375594]
[1745273817153,0.32624445,87034.0,87033.0,0.11375594]
[1745273820393,0.32624445,87034.0,85710.0,4.001e-05]
[1745273820394,0.2413143,87024.0,87021.0,0.01454085]
[1745273820638,0.01149068,87027.0,87023.0,0.22982429]
[1745273820827,0.24130467,87027.0,87024.0,0.11375594]
[1745273821129,0.22981901,87025.0,87024.0,0.11375594]
[1745273821616,0.0688014,87025.0,87024.0,0.11375594]
[1745273821743,0.29862041,87025.0,87024.0,0.11375594]
[1745273822371,0.0688014,87025.0,87024.0,0.11375594]
[1745273822616,0.0688014,87025.0,87024.0,0.40351844]
[1745273822854,0.00078645,87034.0,87031.0,0.01454085]
[1745273823072,0.00078645,87034.0,87032.0,0.11375594]
[1745273823303,0.06872503,87033.0,87032.0,0.11375594]
[1745273823543,0.06872503,87033.0,87032.0,0.34355647]
[1745273823775,0.00078645,87034.0,87033.0,0.22979789]
[1745273823980,0.00178645,87034.0,87033.0,0.34355383]
[1745273824199,0.07150884,87034.0,87033.0,0.34355383]
[1745273824411,0.09639395,87034.0,87033.0,0.34355383]
[1745273825288,0.09539395,87034.0,87033.0,0.34355383]
[1745273825488,0.00078645,87034.0,87033.0,0.34355383]
[1745273825693,0.00178645,87034.0,87033.0,0.35809468]
[1745273825891,0.07050884,87034.0,87033.0,0.40349468]
[1745273826164,0.00178645,87034.0,87033.0,0.40349468]
[1745273826408,0.00278645,87034.0,87033.0,0.40349468]
[1745273827019,0.00178645,87034.0,87033.0,0.40349468]
[1745273827325,0.00078645,87034.0,87033.0,0.40349468]
[1745273827568,0.00078645,87034.0,87033.0,0.74349468]
[1745273827963,0.00078645,87034.0,87033.0,0.84037468]
[1745273830090,1e-08,87034.0,87033.0,0.88827468]
[1745273830258,1e-08,87034.0,87033.0,0.89678392]
[1745273831205,1e-08,87034.0,87033.0,1.09678392]
[1745273831759,1e-08,87034.0,87033.0,1.09778392]
[1745273831915,1e-08,87034.0,87033.0,1.09878392]
[1745273836801,1e-08,87034.0,87033.0,1.09027468]
[1745273837032,1e-08,87034.0,87033.0,0.89027468]
[1745273842924,1e-08,87034.0,87033.0,0.89023468]
[1745273844894,1e-08,87034.0,87033.0,0.68655383]
[1745273845326,1e-08,87034.0,87033.0,0.34655383]
[1745273845548,1e-08,87034.0,87033.0,0.36109468]
[1745273846737,1e-08,87034.0,87033.0,0.35909468]
[1745273847811,1e-08,87034.0,87033.0,0.69909468]
[1745273848067,1e-08,87034.0,87033.0,0.74819468]
[1745273849093,1e-08,87034.0,87033.0,0.74919468]
[1745273849812,1e-08,87034.0,87033.0,0.70009468]
[1745273850017,1e-08,87034.0,87033.0,0.70109468]
[1745273850458,1e-08,87034.0,87033.0,0.36109468]
[1745273850853,1e-08,87034.0,87033.0,0.36009468]
[1745273856859,1e-08,87034.0,87033.0,0.74919468]
[1745273857266,1e-08,87034.0,87033.0,0.74719468]
[1745273859110,1e-08,87034.0,87033.0,0.69809468]
[1745273861571,1e-08,87034.0,87033.0,0.35809468]
[1745273862264,1e-08,87034.0,87014.0,0.2]
[1745273862265,0.22984542,87015.0,87014.0,0.2]
[1745273862505,0.32357485,87015.0,87014.0,0.2]
[1745273862728,0.86449399,87015.0,87014.0,0.2]
[1745273862955,0.24141862,86986.0,86976.0,0.01149742]
[1745273863214,0.24141454,86988.0,86981.0,0.01149676]
[1745273863428,0.0114957,86989.0,86984.0,0.22992612]
[1745273863650,0.0114953,86992.0,86988.0,0.22991575]
[1745273863887,0.0114953,86992.0,86989.0,0.22991267]
[1745273864323,0.0114953,86992.0,86987.0,0.22991941]
[1745273864324,0.001,86988.0,86987.0,0.22991941]
[1745273864540,0.001,86988.0,86987.0,0.23037577]
[1745273865149,0.01149544,86991.0,86988.0,0.22991619]
[1745273865382,0.24139963,86993.0,86988.0,0.22991677]
[1745273865624,0.01149438,86999.0,86991.0,0.01149544]
[1745273865821,0.01149438,86999.0,86991.0,0.22990749]
[1745273865822,0.01149504,86994.0,86991.0,0.22990749]
[1745273866035,0.02477681,86993.0,86991.0,0.22990749]
[1745273867491,0.02577681,86993.0,86991.0,0.22990749]
[1745273867842,0.02677681,86993.0,86991.0,0.22990749]
[1745273868665,0.02777681,86993.0,86991.0,0.22990749]
[1745273869153,0.02777681,86993.0,86992.0,0.12829679]
[1745273870171,0.02477681,86993.0,86992.0,0.12829679]
[1745273870491,0.4159,86998.0,86996.0,0.01454085]
[1745273870703,0.01149332,87007.0,87004.0,0.22987252]
[1745273871129,0.09372942,87006.0,87005.0,0.22987109]
[1745273871499,0.09372942,87006.0,87000.0,0.22988398]
[1745273871712,0.24136729,87005.0,87001.0,0.11375594]
[1745273871916,0.01149372,87004.0,87001.0,0.34363691]
[1745273872150,0.01149372,87004.0,87001.0,0.11375594]
[1745273872373,0.01149372,87004.0,87001.0,0.34363685]
[1745273873944,0.06858946,87003.0,87001.0,0.34363685]
[1745273874147,0.0933927,87003.0,87001.0,0.34363685]
[1745273875360,0.0973927,87003.0,87001.0,0.34363685]
[1745273875907,0.0973927,87003.0,86990.0,0.22990942]
[1745273875908,0.01149438,86999.0,86990.0,0.22990942]
[1745273876123,0.24138777,86997.0,86993.0,0.2299029]
[1745273876335,0.24139066,86996.0,86993.0,0.22990212]
[1745273876466,0.03627952,86996.0,86993.0,0.22990212]
[1745273877537,0.01149491,86995.0,86992.0,0.24140149]
[1745273877945,0.02477945,86994.0,86992.0,0.24140149]
[1745273878879,0.22990619,86992.0,86983.0,0.01149649]
[1745273879084,0.02477152,86991.0,86988.0,0.01149583]
[1745273879271,0.01149504,86994.0,86989.0,0.0114957]
[1745273879479,0.01149504,86994.0,86987.0,0.1142123]
[1745273879480,0.22991677,86988.0,86987.0,0.1142123]
[1745273879766,0.25468037,86988.0,86987.0,0.00045636]
[1745273880352,0.0247636,86988.0,86987.0,0.00045636]
[1745273880556,0.25468037,86988.0,86987.0,0.00045636]
[1745273880758,0.22991677,86988.0,86987.0,0.00045636]
[1745273881145,0.25468037,86988.0,86987.0,0.00045636]
[1745273881335,0.25568037,86988.0,86987.0,0.00045636]
[1745273884884,0.67058037,86988.0,86987.0,0.00045636]
[1745273885102,0.67258037,86988.0,86987.0,0.00045636]
[1745273885322,0.67458037,86988.0,86987.0,0.00045636]
[1745273885540,0.73345572,86988.0,86987.0,0.00045636]
[1745273885752,0.72188037,86988.0,86987.0,0.00045636]
[1745273886409,0.83363242,86988.0,86987.0,0.00045636]
[1745273886639,0.74122763,86988.0,86987.0,0.00045636]
[1745273886855,0.74322763,86988.0,86987.0,0.00045636]
[1745273887074,0.74222763,86988.0,86987.0,0.00045636]
[1745273887339,0.72288037,86988.0,86987.0,0.00045636]
[1745273887547,0.71988037,86988.0,86987.0,0.00045636]